[Event "8th Memorial Ekrem Galijatovic 2022"]
[Site "Sarajevo"]
[Date "2022.03.17"]
[Round "9.5"]
[White "Dizdarevic, Emir"]
[Black "Mrndjic, Muamer"]
[Result "1/2-1/2"]
[ECO "A37"]
[WhiteElo "2379"]
[BlackElo "2274"]
[Annotator "ChessBase"]
[PlyCount "51"]
[EventDate "2022.03.13"]
[EventType "tourn"]
[EventCountry "BIH"]
[SourceTitle "playchess.com"]
[Source "ChessBase"]
[SourceQuality "1"]
[TimeControl "5400+30"]

1. c4 {[%emt 0:00:47]} c5 {[%emt 0:01:09]} 2. g3 {[%emt 0:00:40]} g6 {[%emt 0:00:38]} 3. Bg2 {[%emt 0:00:48]} Bg7 {[%emt 0:00:11]} 4. Nc3 {[%emt 0:00:23]} Nc6 {[%emt 0:04:40]} 5. Nf3 {[%emt 0:08:35]} e6 {[%emt 0:06:40]} 6. O-O {[%emt 0:00:51]} Nge7 {[%emt 0:00:11]} 7. d3 {[%emt 0:00:57]} O-O {[%emt 0:00:31]} 8. Bg5 {[%emt 0:02:18]} h6 {[%emt 0:02:26]} 9. Bd2 {[%emt 0:01:22]} d6 {[%emt 0:09:58]} 10. Rb1 {[%emt 0:00:40]} Rb8 {[%emt 0:00:20]} 11. a3 {[%emt 0:00:33]} a6 {[%emt 0:04:05]} 12. b4 {[%emt 0:00:53]} cxb4 {[%emt 0:00:16]} 13. axb4 {[%emt 0:00:12]} b5 {[%emt 0:00:06]} 14. cxb5 {[%emt 0:00:57]} axb5 {[%emt 0:00:09]} 15. e4 {[%emt 0:05:13]} e5 {[%emt 0:04:58]} 16. Ne1 {[%emt 0:01:18]} Nd4 {[%emt 0:00:37]} 17. Nc2 {[%emt 0:00:19]} Nxc2 {[%emt 0:00:31]} 18. Qxc2 {[%emt 0:00:11]} Be6 {[%emt 0:00:15]} 19. Be3 {[%emt 0:03:15]} Qd7 {[%emt 0:02:24]} 20. Qd2 {[%emt 0:00:20]} Kh7 {[%emt 0:00:15]} 21. Ra1 {[%emt 0:00:44]} Nc6 {[%emt 0:01:29]} 22. Nd5 {[%emt 0:00:41]} Bxd5 {[%emt 0:00:12]} 23. exd5 {[%emt 0:00:07]} Nd4 {[%emt 0:00:05]} 24. Bxd4 {[%emt 0:00:17]} exd4 {[%emt 0:00:08]} 25. Ra6 {[%emt 0:00:32]} Ra8 {[%emt 0:01:24]} 26. Rxa8 {[%emt 0:02:29]} 1/2-1/2